bitfinex/quotes_BTCUSD_20250617
["timestamp","ask_amount","ask_price","bid_price","bid_amount"]
[1750170572653,0.59643133,105430.0,105420.0,0.37057436]
[1750170572876,0.58694682,105430.0,105420.0,0.37057436]
[1750170574195,0.91746213,105430.0,105420.0,0.00214216]
[1750170574199,1.52008213,105430.0,105420.0,0.00214216]
[1750170574428,1.42653813,105430.0,105420.0,0.00214216]
[1750170574680,1.31411049,105430.0,105420.0,0.00214216]
[1750170575144,1.63810356,105430.0,105420.0,0.00114216]
[1750170575374,1.60140585,105430.0,105420.0,0.00114216]
[1750170575815,1.59252042,105430.0,105420.0,0.00114216]
[1750170576035,1.59752042,105430.0,105420.0,0.00014216]
[1750170576262,1.6484831,105430.0,105420.0,0.00014216]
[1750170576926,1.4458031,105430.0,105420.0,0.00014216]
[1750170577142,1.68610081,105430.0,105420.0,0.00014216]
[1750170577373,1.6484031,105430.0,105420.0,0.00014216]
[1750170577603,1.06136239,105430.0,105420.0,0.00014216]
[1750170577838,0.83378,105430.0,105420.0,0.22780166]
[1750170578077,0.05154517,105430.0,105420.0,0.22780166]
[1750170578297,0.006,105430.0,105420.0,0.27190166]
[1750170578774,0.8333,105440.0,105430.0,0.21815312]
[1750170578994,0.81729307,105440.0,105430.0,0.21815312]
[1750170579431,1.15729307,105440.0,105430.0,0.21815312]
[1750170579749,0.8333,105440.0,105430.0,0.21815312]
[1750170579966,1.15729307,105440.0,105430.0,0.21815312]
[1750170580184,1.16229307,105440.0,105430.0,0.21815312]
[1750170580633,1.17177632,105440.0,105430.0,0.21815312]
[1750170580854,1.18379307,105440.0,105430.0,0.21815312]
[1750170581085,0.77164929,105440.0,105430.0,0.21815312]
[1750170582189,0.78113254,105440.0,105430.0,0.21815312]
[1750170582407,0.79061597,105440.0,105430.0,0.21815312]
[1750170582627,0.78113254,105440.0,105430.0,0.21815312]
[1750170583065,0.79061597,105440.0,105430.0,0.21815312]
[1750170583280,0.81171597,105440.0,105430.0,0.21815312]
[1750170583712,0.83068346,105440.0,105430.0,0.21815312]
[1750170585077,1.02984876,105440.0,105430.0,0.21815312]
[1750170585556,1.02984876,105440.0,105430.0,0.20866879]
[1750170585782,1.01088208,105440.0,105430.0,0.20866879]
[1750170586721,0.82120075,105440.0,105430.0,0.22763763]
[1750170586943,0.00948433,105430.0,105420.0,0.21831508]
[1750170587166,1.00139847,105440.0,105430.0,0.20866879]
[1750170587417,1.00139847,105440.0,105430.0,0.19670419]
[1750170587635,0.01896875,105430.0,105420.0,0.36798967]
[1750170588219,0.01896839,105430.0,105420.0,0.36798967]
[1750170588677,0.02845281,105430.0,105420.0,0.36798967]
[1750170588895,0.03145281,105430.0,105420.0,0.36798967]
[1750170589138,0.04093741,105430.0,105420.0,0.36798967]
[1750170589580,0.04093732,105430.0,105420.0,0.36798967]
[1750170590014,0.05042201,105430.0,105420.0,0.36798967]
[1750170590240,0.04093732,105430.0,105420.0,0.36798967]
[1750170590710,0.04093732,105430.0,105420.0,0.20882967]
[1750170590930,0.0731221,105430.0,105420.0,0.3773558]
[1750170591627,0.01248415,105430.0,105420.0,0.3773558]
[1750170591888,0.01248415,105430.0,105420.0,0.3998558]
[1750170592118,0.003,105430.0,105420.0,0.3998558]
[1750170592353,0.01248424,105430.0,105420.0,0.3998558]
[1750170592833,0.003,105430.0,105420.0,0.3998558]
[1750170593308,0.01248424,105430.0,105420.0,0.3998558]
[1750170593759,0.02196857,105430.0,105420.0,0.3773558]
[1750170593995,0.03145317,105430.0,105420.0,0.3773558]
[1750170594494,0.01248424,105430.0,105420.0,0.4001558]
[1750170595199,0.003,105430.0,105420.0,0.4219558]
[1750170596619,0.56761624,105440.0,105430.0,0.20866897]
[1750170596849,0.56761624,105440.0,105430.0,0.21815357]
[1750170597531,0.59041624,105440.0,105430.0,0.37014897]
[1750170597775,0.99556553,105440.0,105430.0,0.37963357]
[1750170597999,0.99556553,105440.0,105430.0,0.21815357]
[1750170598262,0.00948424,105430.0,105420.0,0.20883012]
[1750170598482,0.01896875,105430.0,105420.0,0.37015012]
[1750170598708,0.02845344,105430.0,105420.0,0.20883012]
[1750170598935,0.02845344,105430.0,105420.0,0.37011012]
[1750170599164,0.99821826,105430.0,105420.0,0.00014216]
[1750170599396,1.11718905,105430.0,105420.0,0.00014216]
[1750170599878,1.11818905,105430.0,105420.0,0.00014216]
[1750170600115,0.71303976,105430.0,105420.0,0.00014216]
[1750170600367,1.11818905,105430.0,105420.0,0.00014216]
[1750170601080,1.03731799,105430.0,105420.0,0.00014216]
[1750170601525,1.36159622,105430.0,105420.0,0.00014216]
[1750170602196,1.03731799,105430.0,105420.0,0.00014216]
[1750170603613,1.36159622,105430.0,105420.0,0.00014216]
[1750170604298,1.03731799,105430.0,105420.0,0.00014216]
[1750170605724,1.36159622,105430.0,105420.0,0.00014216]
[1750170606209,1.56171881,105430.0,105420.0,0.00014216]
[1750170606446,1.57151271,105430.0,105420.0,0.00014216]
[1750170606912,0.7998989,105430.0,105420.0,0.00014216]
[1750170607145,1.08123799,105430.0,105420.0,0.00014216]
[1750170607388,0.9622672,105430.0,105420.0,0.00014216]
[1750170607617,0.93098251,105430.0,105420.0,0.00014216]
[1750170607851,0.95268251,105430.0,105420.0,0.00014216]
[1750170608308,0.96168251,105430.0,105420.0,0.00114216]
[1750170608532,0.95268251,105430.0,105420.0,0.00014216]
[1750170608777,0.92998251,105430.0,105420.0,0.00014216]
[1750170609031,1.01298299,105430.0,105420.0,0.00014216]
[1750170609289,0.65038299,105430.0,105420.0,0.00014216]
[1750170609523,0.65038299,105430.0,105420.0,0.24970184]
[1750170609524,0.02096893,105430.0,105420.0,0.24970184]
[1750170609755,0.02096893,105430.0,105420.0,0.43472184]
[1750170609756,0.01148424,105430.0,105420.0,0.43472184]
[1750170609989,0.002,105430.0,105420.0,0.43472184]
[1750170610484,0.002,105430.0,105420.0,0.5309236]
[1750170611213,0.00948334,105440.0,105430.0,0.23965312]
[1750170611441,0.34948325,105440.0,105430.0,0.25116789]
[1750170611667,0.35896677,105440.0,105430.0,0.25116789]
[1750170611902,0.35896659,105440.0,105430.0,0.28548107]
[1750170612125,0.34,105440.0,105430.0,0.25116789]
[1750170612590,0.002,105440.0,105430.0,0.25116789]
[1750170613031,0.002,105440.0,105430.0,0.34740965]
[1750170614633,0.37793093,105450.0,105440.0,0.0284511]
[1750170614896,0.36844804,105450.0,105440.0,0.23973243]
[1750170615324,0.57707761,105450.0,105440.0,0.3810527]
[1750170615543,0.35896524,105450.0,105440.0,0.39053613]
[1750170615764,0.36844813,105450.0,105440.0,0.41243613]
[1750170616241,0.37793111,105450.0,105440.0,0.41243613]
[1750170616689,0.56759499,105450.0,105440.0,0.3810527]
[1750170616910,0.56759499,105450.0,105440.0,0.40001965]
[1750170617153,0.56759499,105450.0,105440.0,0.39053622]
[1750170617369,0.57707815,105450.0,105440.0,0.39053622]
[1750170617660,0.36844858,105450.0,105440.0,0.40001965]
[1750170617885,0.3589656,105450.0,105440.0,0.40001965]
[1750170618120,0.3589656,105450.0,105440.0,0.42151965]
[1750170618121,0.34948244,105450.0,105440.0,0.42151965]
[1750170618347,0.35896506,105450.0,105440.0,0.42151965]
[1750170618576,0.34948235,105450.0,105440.0,0.44211965]
[1750170618846,0.34,105450.0,105440.0,0.44211965]
[1750170619073,0.36147154,105460.0,105450.0,0.24011174]
[1750170619306,0.38043471,105460.0,105450.0,0.26271174]
[1750170619548,0.40888059,105460.0,105450.0,0.40379174]
[1750170619774,0.40888041,105460.0,105450.0,0.40379174]
[1750170620234,0.40888095,105460.0,105450.0,0.40379174]
[1750170620450,0.39939887,105460.0,105450.0,0.40379174]
[1750170620919,0.36147154,105460.0,105450.0,0.40379174]
[1750170621126,0.38043471,105460.0,105450.0,0.42579174]
[1750170621345,0.37095299,105460.0,105450.0,0.42579174]
[1750170621566,0.38243471,105460.0,105450.0,0.42579174]
[1750170621793,0.37295299,105460.0,105450.0,0.42579174]
[1750170622028,0.37295299,105460.0,105450.0,0.26211174]
[1750170622276,0.37095299,105460.0,105450.0,0.42623174]
[1750170622540,0.38808116,105470.0,105460.0,0.23949106]
[1750170622782,0.38808116,105470.0,105460.0,0.26189106]
[1750170623013,0.39756216,105470.0,105460.0,0.26189106]
[1750170623491,0.35896138,105470.0,105460.0,0.26189106]
[1750170623977,0.35896138,105470.0,105460.0,0.26289106]
[1750170624640,0.36844247,105470.0,105460.0,0.26289106]
[1750170624873,0.37992365,105470.0,105460.0,0.24049106]
[1750170625568,0.38040366,105470.0,105460.0,0.24049106]
[1750170625791,0.38988466,105470.0,105460.0,0.24049106]
[1750170626009,0.39936584,105470.0,105460.0,0.24049106]
[1750170626231,0.38988466,105470.0,105460.0,0.24049106]
[1750170626702,0.342,105470.0,105460.0,0.26269106]
[1750170626952,0.36096173,105470.0,105460.0,0.29700424]
[1750170627207,0.36096173,105470.0,105460.0,0.26269106]
[1750170627458,0.36096164,105470.0,105460.0,0.26269106]
[1750170627698,0.35148073,105470.0,105460.0,0.26269106]
[1750170628135,0.36096155,105470.0,105460.0,0.26269106]
[1750170628364,0.35148064,105470.0,105460.0,0.26269106]
[1750170628585,0.342,105470.0,105460.0,0.26269106]
[1750170628815,0.35148064,105470.0,105460.0,0.42617106]
[1750170629047,0.342,105470.0,105460.0,0.42617106]
[1750170629268,0.35148064,105470.0,105460.0,0.42617106]
[1750170629491,0.35148064,105470.0,105460.0,0.26269106]
[1750170629712,0.35148064,105470.0,105460.0,0.42609106]
[1750170629955,0.342,105470.0,105460.0,0.35893282]
[1750170630183,0.342,105470.0,105460.0,0.52229282]
[1750170630452,0.002,105470.0,105460.0,0.52229282]
[1750170630683,0.002,105470.0,105460.0,0.52225282]
[1750170630912,0.002,105470.0,105460.0,0.35893282]
[1750170631139,0.002,105470.0,105460.0,0.52217282]
[1750170632297,0.01148056,105470.0,105460.0,0.52217282]
[1750170632568,0.002,105470.0,105460.0,0.52217282]
[1750170633707,0.01148073,105470.0,105460.0,0.35893282]
[1750170633928,0.002,105470.0,105460.0,0.52189282]
[1750170634332,0.01148073,105470.0,105460.0,0.52189282]
[1750170634568,0.02096138,105470.0,105460.0,0.52189282]
[1750170634802,0.01148056,105470.0,105460.0,0.52189282]
[1750170635034,0.02096129,105470.0,105460.0,0.52189282]
[1750170636092,0.03044229,105470.0,105460.0,0.33673282]
[1750170636339,0.02096129,105470.0,105460.0,0.49949282]
[1750170636506,0.0304422,105470.0,105460.0,0.49949282]
[1750170636916,0.0304422,105470.0,105460.0,0.33673282]
[1750170637090,0.0304422,105470.0,105460.0,0.49945282]
[1750170637873,0.02096129,105470.0,105460.0,0.49945282]
[1750170638095,0.01148056,105470.0,105460.0,0.49945282]
[1750170638317,0.0304422,105470.0,105460.0,0.49945282]
[1750170638539,0.02096129,105470.0,105460.0,0.49945282]
[1750170639155,0.0304422,105470.0,105460.0,0.49945282]
[1750170639610,0.03992329,105470.0,105460.0,0.49945282]
[1750170639830,0.02096129,105470.0,105460.0,0.49945282]
[1750170640267,0.0304422,105470.0,105460.0,0.49945282]
[1750170640484,0.03044211,105470.0,105460.0,0.49945282]
[1750170640756,0.01148056,105470.0,105460.0,0.49945282]
[1750170640977,0.02096129,105470.0,105460.0,0.49945282]
[1750170641193,0.0304422,105470.0,105460.0,0.49945282]
[1750170641663,0.01148056,105470.0,105460.0,0.49945282]
[1750170641913,0.002,105470.0,105460.0,0.33673282]
[1750170642163,0.02096164,105470.0,105460.0,0.49897282]
[1750170643374,0.02096164,105470.0,105460.0,0.38125124]
[1750170643375,0.37323809,105470.0,105460.0,0.38125124]
[1750170643592,0.56286556,105470.0,105460.0,0.39065287]
[1750170643813,0.58366556,105470.0,105460.0,0.39065287]
[1750170644033,0.03044282,105470.0,105460.0,0.39065287]
[1750170644282,0.2200702,105470.0,105460.0,0.22857287]
[1750170644550,0.55338447,105470.0,105460.0,0.38113124]
[1750170644978,0.55338447,105470.0,105460.0,0.39061287]
[1750170645861,0.55338447,105470.0,105460.0,0.39049287]
[1750170646087,0.57418447,105470.0,105460.0,0.39049287]
[1750170646315,0.56470311,105470.0,105460.0,0.22857287]
[1750170646544,0.384557,105470.0,105460.0,0.22857287]
[1750170646765,0.57418438,105470.0,105460.0,0.21909124]
[1750170646985,0.57418438,105470.0,105460.0,0.39041287]
[1750170647442,0.384557,105470.0,105460.0,0.39041287]
[1750170648116,0.363757,105470.0,105460.0,0.39041287]
[1750170648997,0.55338438,105470.0,105460.0,0.39041287]
[1750170649442,0.58396574,105470.0,105460.0,0.39041287]
[1750170649691,0.57448501,105470.0,105460.0,0.38077124]
[1750170649910,0.2506521,105470.0,105460.0,0.38077124]
[1750170650124,0.56500365,105470.0,105460.0,0.21909124]
[1750170650592,0.56500365,105470.0,105460.0,0.38069124]
[1750170650797,0.56500365,105470.0,105460.0,0.39017287]
[1750170651063,0.37537627,105470.0,105460.0,0.39017287]
[1750170651494,0.05154273,105470.0,105460.0,0.39017287]
[1750170651712,0.03044264,105470.0,105460.0,0.39017287]
[1750170652215,0.02796264,105470.0,105460.0,0.39017287]
[1750170652429,0.01896146,105470.0,105460.0,0.39017287]
[1750170652677,0.02844246,105470.0,105460.0,0.39017287]
[1750170652928,0.01896146,105470.0,105460.0,0.38877302]
[1750170653201,0.99355123,105480.0,105470.0,0.20858965]
[1750170653459,0.96525321,105480.0,105470.0,0.19910865]
[1750170653710,0.57781931,105480.0,105470.0,0.20858983]
[1750170654477,0.58281931,105480.0,105470.0,0.20858983]
[1750170655412,0.58281931,105480.0,105470.0,0.21807092]
[1750170655633,0.95066713,105480.0,105470.0,0.21807092]
[1750170656142,0.9698588,105480.0,105470.0,0.21807092]
[1750170656579,0.9698588,105480.0,105470.0,0.20858983]
[1750170657100,0.9698588,105480.0,105470.0,0.19910874]
[1750170657331,0.9698588,105480.0,105470.0,0.20859001]
[1750170657998,0.9698588,105480.0,105470.0,0.21807119]
[1750170658214,0.9698588,105480.0,105470.0,0.22755228]
[1750170659102,0.97933918,105480.0,105470.0,0.23703319]
[1750170659316,0.97933918,105480.0,105470.0,0.36959001]
[1750170659549,0.97933918,105480.0,105470.0,0.37907119]
[1750170659991,0.65550627,105480.0,105470.0,0.37907119]
[1750170660213,0.77970911,105480.0,105470.0,0.39803265]
[1750170660466,0.03381355,105480.0,105470.0,0.41923265]
[1750170660679,0.00514213,105480.0,105470.0,0.44023265]
[1750170660901,0.01462188,105480.0,105470.0,0.44023265]
[1750170661117,0.00514213,105480.0,105470.0,0.44023265]
[1750170661767,0.00514213,105480.0,105470.0,0.86030732]
[1750170662022,0.00514213,105480.0,105470.0,0.86230732]
[1750170662792,0.00014213,105480.0,105470.0,0.86230732]
[1750170663250,0.00014213,105480.0,105470.0,0.86330732]
[1750170663479,0.00014213,105480.0,105470.0,0.86030732]
[1750170663725,0.00014213,105480.0,105470.0,0.86330732]
[1750170664408,0.00014213,105480.0,105470.0,0.54247441]
[1750170664654,0.00014213,105480.0,105470.0,0.86630732]
[1750170665324,0.00014213,105480.0,105470.0,0.88084817]
[1750170665571,0.00014213,105480.0,105470.0,0.92564817]
[1750170665788,0.00014213,105480.0,105470.0,0.71984817]
[1750170666012,0.00014213,105480.0,105470.0,0.94280774]
[1750170666240,0.00014213,105480.0,105470.0,0.94276774]
[1750170666462,0.00014213,105480.0,105470.0,0.93984774]
[1750170666675,0.00014213,105480.0,105470.0,0.93684774]
[1750170666900,0.00014213,105480.0,105470.0,0.38547441]
[1750170667123,0.00014213,105480.0,105470.0,0.36447441]
[1750170667317,0.00014213,105480.0,105470.0,0.52595441]
[1750170667577,0.00014213,105480.0,105470.0,0.88462817]
[1750170668012,0.00014213,105480.0,105470.0,0.87962817]
[1750170668470,0.00014213,105480.0,105470.0,0.88262817]
[1750170669620,0.00014213,105480.0,105470.0,0.87770817]
[1750170670957,0.00014213,105480.0,105470.0,0.71614817]
[1750170671208,0.00014213,105480.0,105470.0,0.87770817]
[1750170671508,0.00014213,105480.0,105470.0,0.53921441]
[1750170671738,0.00014213,105480.0,105470.0,0.51891441]
[1750170671949,0.00014213,105480.0,105470.0,0.84274732]
[1750170672163,0.00014213,105480.0,105470.0,0.51891441]
[1750170672619,0.00014213,105480.0,105470.0,0.54051441]
[1750170672872,0.00014213,105480.0,105470.0,0.86434732]
[1750170673799,0.00014213,105480.0,105470.0,0.51887441]
[1750170674963,0.00014213,105480.0,105470.0,0.84270732]
[1750170675884,0.00014213,105480.0,105470.0,0.84242732]
[1750170676369,0.00014213,105480.0,105470.0,0.51859441]
[1750170677326,0.00014213,105480.0,105470.0,0.35747441]
[1750170677547,0.00014213,105480.0,105470.0,0.51855441]
[1750170679613,0.00014213,105480.0,105470.0,0.86228732]
[1750170681471,0.00014213,105480.0,105470.0,0.84238732]
[1750170681748,0.00014213,105480.0,105470.0,0.51855441]
[1750170683118,0.00014213,105480.0,105470.0,0.84238732]
[1750170683577,0.00014213,105480.0,105470.0,0.68130732]
[1750170683818,0.4041953,105480.0,105470.0,0.24003274]
[1750170684035,0.59380542,105480.0,105470.0,0.36298856]
[1750170684278,0.5843254,105480.0,105470.0,0.19262738]
[1750170684506,0.57484529,105480.0,105470.0,0.20210874]
[1750170684727,0.57484529,105480.0,105470.0,0.38199101]
[1750170684948,0.57484529,105480.0,105470.0,0.36951001]
[1750170685170,0.57484529,105480.0,105470.0,0.38847228]
[1750170685390,0.06140262,105480.0,105470.0,0.39995265]
[1750170685607,0.57484493,105480.0,105470.0,0.39995211]
[1750170685834,0.39471528,105480.0,105470.0,0.39995211]
[1750170686064,0.05292197,105480.0,105470.0,0.23903211]
[1750170686300,0.05292197,105480.0,105470.0,0.39991211]
[1750170686553,0.02224213,105480.0,105470.0,0.39991211]
[1750170686820,0.00114213,105480.0,105470.0,0.72374502]
[1750170687046,0.00114213,105480.0,105470.0,0.74364502]
[1750170687270,0.02010163,105480.0,105470.0,0.39991211]
[1750170688599,0.02958165,105480.0,105470.0,0.39991211]
[1750170688846,0.01062179,105480.0,105470.0,0.39991211]
[1750170689112,0.00114213,105480.0,105470.0,0.39991211]
[1750170689347,0.01062179,105480.0,105470.0,0.39991211]
[1750170689547,0.00114213,105480.0,105470.0,0.39991211]
[1750170689802,0.01062179,105480.0,105470.0,0.39991211]
[1750170690942,0.00114213,105480.0,105470.0,0.39991211]
[1750170691172,0.01062197,105480.0,105470.0,0.39991211]
[1750170691409,0.04090199,105480.0,105470.0,0.39991211]
[1750170691874,0.05986221,105480.0,105470.0,0.39967211]
[1750170692111,0.05986203,105480.0,105470.0,0.39967211]
[1750170692338,0.06934232,105480.0,105470.0,0.39967211]
[1750170692584,0.58278463,105480.0,105470.0,0.22007056]
[1750170692813,0.58278463,105480.0,105470.0,0.35222738]
[1750170692814,0.58442558,105480.0,105470.0,0.35222738]
[1750170693279,0.90825849,105480.0,105470.0,0.002]
[1750170693521,0.57494529,105480.0,105470.0,0.002]
[1750170693776,1.33501996,105480.0,105470.0,0.002]
[1750170694037,1.35773845,105480.0,105470.0,0.002]
[1750170694266,1.40173845,105480.0,105470.0,0.002]
[1750170695440,1.35773845,105480.0,105470.0,0.002]
[1750170695665,1.40173845,105480.0,105470.0,0.002]
[1750170695892,0.75351263,105480.0,105470.0,0.19162738]
[1750170696145,1.07734554,105480.0,105470.0,0.002]
[1750170696615,0.91494529,105480.0,105470.0,0.36158856]
[1750170696856,0.91494529,105480.0,105470.0,0.35210738]
[1750170697120,0.91494529,105480.0,105470.0,0.16248]
[1750170697318,0.91494529,105480.0,105470.0,0.35210738]
[1750170697583,0.91494529,105480.0,105470.0,0.36158874]
[1750170698266,0.91494529,105480.0,105470.0,0.37107001]
[1750170698496,0.90546491,105480.0,105470.0,0.41158874]
[1750170699172,0.90546491,105480.0,105470.0,0.42107001]
[1750170699638,0.38533517,105480.0,105470.0,0.43055101]
[1750170699869,0.59390533,105480.0,105470.0,0.43055101]
[1750170700103,0.25111229,105480.0,105470.0,0.052]
[1750170700560,0.5749452,105480.0,105470.0,0.052]
[1750170700789,0.56546491,105480.0,105470.0,0.052]
[1750170701251,0.88929782,105480.0,105470.0,0.21524]
[1750170701721,0.98553958,105480.0,105470.0,0.052]
[1750170704019,0.66170667,105480.0,105470.0,0.052]
[1750170704738,0.98553958,105480.0,105470.0,0.052]
[1750170705869,1.02897958,105480.0,105470.0,0.052]
[1750170706302,0.70514667,105480.0,105470.0,0.052]
[1750170706540,1.02897958,105480.0,105470.0,0.052]
[1750170710136,1.36897958,105480.0,105470.0,0.052]
[1750170710345,1.3916562,105480.0,105470.0,0.052]
[1750170711204,1.55619705,105480.0,105470.0,0.052]
[1750170711415,1.80234627,105480.0,105470.0,0.052]
[1750170711630,1.83068201,105480.0,105470.0,0.052]
[1750170712266,1.82968201,105480.0,105470.0,0.052]
[1750170712935,6.87968201,105480.0,105470.0,0.052]
[1750170713147,6.87968201,105480.0,105470.0,0.05]
[1750170713362,1.74633279,105480.0,105470.0,0.05]
[1750170713570,1.58877296,105480.0,105470.0,0.051]
[1750170713793,1.74829279,105480.0,105470.0,0.051]
[1750170714006,1.74629279,105480.0,105470.0,0.05]
[1750170714231,1.84844201,105480.0,105470.0,0.05]
[1750170714883,1.54609279,105480.0,105470.0,0.05]
[1750170715114,1.60221279,105480.0,105470.0,0.05]
[1750170715962,1.38155194,105480.0,105470.0,0.05]
[1750170716167,1.5593362,105480.0,105470.0,0.05]
[1750170716433,1.63491128,105480.0,105470.0,0.05]
[1750170716648,1.50195785,105480.0,105470.0,0.05]
[1750170716889,1.03911534,105480.0,105470.0,0.05]
[1750170717085,1.68678116,105480.0,105470.0,0.05]
[1750170718361,1.70132201,105480.0,105470.0,0.05]
[1750170719206,1.70132201,105480.0,105470.0,0.04752]
[1750170721142,1.05365619,105480.0,105470.0,0.04752]
[1750170721345,1.70132201,105480.0,105470.0,0.04752]
[1750170721555,7.09941161,105480.0,105470.0,0.0059089]
[1750170721770,7.11299051,105480.0,105470.0,0.0059089]
[1750170721985,6.76080026,105480.0,105470.0,0.0059089]
[1750170722627,6.78915441,105480.0,105470.0,0.0059089]
[1750170722846,6.76080026,105480.0,105470.0,0.0059089]
[1750170723055,6.91080026,105480.0,105470.0,0.0059089]
[1750170723257,1.89802478,105480.0,105470.0,0.0059089]
[1750170723688,1.88916035,105480.0,105470.0,0.0059089]
[1750170723927,0.20864936,105440.0,105430.0,0.0405]
[1750170724162,0.21813306,105440.0,105430.0,0.31525936]
[1750170724386,0.54196597,105440.0,105430.0,0.33422883]
[1750170724609,0.54196597,105440.0,105430.0,0.23968428]
[1750170724848,0.53248227,105440.0,105430.0,0.0198]
[1750170725301,0.56274069,105440.0,105430.0,0.0198]
[1750170725538,0.1991841,105430.0,105420.0,0.24270309]
[1750170725751,0.52301701,105430.0,105420.0,0.04364216]
[1750170725970,0.1991841,105430.0,105420.0,0.22124534]
[1750170726183,0.53250197,105430.0,105420.0,0.26171643]
[1750170726411,0.00948415,105430.0,105420.0,0.27120166]
[1750170726628,0.57890724,105440.0,105430.0,0.0419]
[1750170726842,0.93086501,105440.0,105430.0,0.05138487]
[1750170727059,0.6070321,105440.0,105430.0,0.2390841]
[1750170727273,0.38922537,105440.0,105430.0,0.25805303]
[1750170727495,0.39870925,105440.0,105430.0,0.25805303]
[1750170727726,0.39870916,105440.0,105430.0,0.25805303]
[1750170727967,0.38922537,105440.0,105430.0,0.25805303]
[1750170728185,0.39870889,105440.0,105430.0,0.26005303]
[1750170728406,0.73202568,105440.0,105430.0,0.26005303]
[1750170728646,0.03025842,105440.0,105430.0,0.26005303]
[1750170728862,0.0284502,105440.0,105430.0,0.26005303]
[1750170729077,0.02845011,105440.0,105430.0,0.26005303]
[1750170729286,0.01896659,105440.0,105430.0,0.26005303]
[1750170729717,0.57778212,105450.0,105440.0,0.208649]
[1750170729718,0.21811237,105450.0,105440.0,0.208649]
[1750170729955,0.27291472,105450.0,105440.0,0.249849]
[1750170730166,0.62514389,105450.0,105440.0,0.249849]
[1750170730383,0.61566136,105450.0,105440.0,0.22026521]
[1750170730596,0.60617856,105450.0,105440.0,0.22026539]
[1750170731049,0.6274446,105450.0,105440.0,0.0211]
[1750170731259,0.20864855,105440.0,105430.0,0.24138428]
[1750170731487,0.52299821,105440.0,105430.0,0.26035393]
[1750170731909,0.52299821,105440.0,105430.0,0.0217]
[1750170732344,0.52299821,105440.0,105420.0,0.41579075]
[1750170732345,0.21815339,105430.0,105420.0,0.41579075]
[1750170732583,0.53250188,105430.0,105420.0,0.21075948]
[1750170732817,0.53250188,105430.0,105420.0,0.00014216]
[1750170732818,0.51353223,105430.0,105420.0,0.00014216]
[1750170733060,0.53343223,105430.0,105420.0,0.00014216]
[1750170733275,0.51353223,105430.0,105420.0,0.00014216]
[1750170733491,0.51353223,105430.0,105420.0,0.19934525]
[1750170733698,0.51353223,105430.0,105420.0,0.20234525]
[1750170733916,0.22763772,105430.0,105420.0,0.26381598]
[1750170736302,0.92728579,105440.0,105430.0,0.22886879]
[1750170736519,0.93676922,105440.0,105430.0,0.22886879]
[1750170736748,0.94625328,105440.0,105430.0,0.2598533]
[1750170736974,0.00948343,105440.0,105430.0,0.26933763]
[1750170737190,0.03793462,105440.0,105430.0,0.26933763]
[1750170737428,0.55144886,105440.0,105430.0,0.26933763]
[1750170738098,0.35228365,105440.0,105430.0,0.26933763]
[1750170738348,0.34279986,105440.0,105430.0,0.26933763]
[1750170738564,0.34279986,105440.0,105430.0,0.27133763]
[1750170738994,0.39914519,105450.0,105440.0,0.21813243]
[1750170739210,0.76090885,105450.0,105440.0,0.23913261]
[1750170739471,0.76090876,105450.0,105440.0,0.24861604]
[1750170739899,0.77039183,105450.0,105440.0,0.24861604]
[1750170740324,0.96005598,105450.0,105440.0,0.24013261]
[1750170740545,1.30076058,105450.0,105440.0,0.19068133]
[1750170740755,1.31217751,105450.0,105440.0,0.001]
[1750170741202,1.31417751,105450.0,105440.0,0.001]
[1750170741422,1.33688734,105450.0,105440.0,0.001]
[1750170742063,1.33688734,105450.0,105440.0,0.19068133]
[1750170742272,0.79300793,105450.0,105440.0,0.20016521]
[1750170742485,0.7892637,105450.0,105440.0,0.24003234]
[1750170742686,0.79874668,105450.0,105440.0,0.24003234]
[1750170742906,0.80822975,105450.0,105440.0,0.24003234]
[1750170743119,0.99789309,105450.0,105440.0,0.24003234]
[1750170743321,0.80822975,105450.0,105440.0,0.24003234]
[1750170743744,0.75342614,105450.0,105440.0,0.24003243]
[1750170743972,0.7249781,105450.0,105440.0,0.24951586]
[1750170744191,0.45594763,105450.0,105440.0,0.26941586]
[1750170744406,0.78926343,105450.0,105440.0,0.26941586]
[1750170744650,0.79874614,105450.0,105440.0,0.26941586]
[1750170744874,0.74394325,105450.0,105440.0,0.26941586]
[1750170745084,0.94308948,105450.0,105440.0,0.26941586]
[1750170745337,0.95257246,105450.0,105440.0,0.25044891]
[1750170745551,0.95257246,105450.0,105440.0,0.25993252]
[1750170745850,0.96205562,105450.0,105440.0,0.25993252]
[1750170746057,0.95257318,105450.0,105440.0,0.25044891]
[1750170746478,0.95257318,105450.0,105440.0,0.24096521]
[1750170747106,0.95257318,105450.0,105440.0,0.2409653]
[1750170747314,0.93360758,105450.0,105440.0,0.0219]
[1750170747535,0.93360758,105450.0,105440.0,0.001]
[1750170747536,1.29874049,105450.0,105440.0,0.001]
[1750170747744,1.44753027,105450.0,105440.0,0.001]
[1750170747965,1.62024003,105450.0,105440.0,0.001]
[1750170753746,1.56769201,105450.0,105440.0,0.001]
[1750170755801,1.41769201,105450.0,105440.0,0.001]
[1750170756939,1.58145201,105450.0,105440.0,0.001]
[1750170762013,0.93378619,105450.0,105440.0,0.001]
[1750170762246,1.58145201,105450.0,105440.0,0.001]
[1750170762694,1.39719201,105450.0,105440.0,0.001]
[1750170762938,1.39719201,105450.0,105440.0,0.0221]
[1750170762939,0.63248443,105450.0,105440.0,0.0221]
[1750170763164,1.14256758,105450.0,105440.0,0.24256539]
[1750170763386,1.14256758,105450.0,105440.0,0.25204936]
[1750170763630,1.14256758,105450.0,105440.0,0.0434]
[1750170763855,0.97932758,105450.0,105440.0,0.23308133]
[1750170764083,0.99829264,105450.0,105440.0,0.25204936]
[1750170764322,0.99829264,105450.0,105440.0,0.26153324]
[1750170764539,0.99829264,105450.0,105440.0,0.25204936]
[1750170764761,0.89572762,105450.0,105440.0,0.26153324]
[1750170764988,0.92417593,105450.0,105440.0,0.0434]
[1750170765212,0.91469349,105450.0,105440.0,0.2425653]
[1750170765449,0.89572816,105450.0,105440.0,0.0434]
[1750170766388,1.35750283,105450.0,105440.0,0.001]
[1750170766610,1.37071092,105450.0,105440.0,0.001]
[1750170766843,1.67598014,105450.0,105440.0,0.001]
[1750170769509,1.21401801,105450.0,105440.0,0.001]
[1750170769711,1.53785092,105450.0,105440.0,0.001]
[1750170770485,1.51515985,105450.0,105440.0,0.001]
[1750170771142,1.58034951,105450.0,105440.0,0.001]
[1750170772786,1.58034951,105450.0,105420.0,0.00014216]
[1750170772787,0.01896929,105430.0,105420.0,0.00014216]
[1750170773012,1.31397619,105430.0,105420.0,0.00014216]
[1750170773234,0.99014328,105430.0,105420.0,0.00014216]
[1750170773448,1.15298328,105430.0,105420.0,0.00014216]
[1750170773662,1.17468328,105430.0,105420.0,0.00014216]
[1750170774350,1.15298328,105430.0,105420.0,0.00014216]
[1750170775217,0.99014328,105430.0,105420.0,0.00014216]
[1750170775444,0.99114328,105430.0,105420.0,0.00014216]